Cogmind - Beta 10.2 @@@ ROGUE MODE // 2021.03.02 @ 19:25:49 Player: Steed Result: Destroyed by G-47 Trooper with Particle Gun Performance ------------- Evolutions (0) 0 Regions Visited (4) 800 Robots Destroyed (6) 30 Value Destroyed (152) 152 Prototype IDs (23) 460 Alien Tech Used (0) 0 Bonus (300) 300 TOTAL SCORE: 1742 Bonus ------- Aligned with FarCom 300 Cogmind --------- Core Integrity 0/250 Matter 410/450 Energy 99/100 System Corruption 0% Temperature Cool (9) Movement Core (200) Ox3 Location -9/Mines Parts ------- > --- POWER (1) -------- (None) > --- PROPULSION (2) --- (None) > --- UTILITY (2) ------ Medium Storage Unit Large Matter Pod > --- WEAPON (2) ------- (None) > --- INVENTORY (8) ---- Heat Sink Medium Storage Unit Medium Matter Pod (100) Dynamic Insulation System Chronowheel YOLO Cannon Peak State ------------ > --- POWER ------------ (None) > --- PROPULSION ------- Improved Titanium Leg Wheel > --- UTILITY ---------- Medium Storage Unit Large Matter Pod > --- WEAPON ----------- YOLO Cannon > --- INVENTORY -------- Heat Sink Medium Storage Unit Medium Matter Pod Dynamic Insulation System Chronowheel Small Laser [Rating: 29] Favorites ----------- Power Light Ion Engine Engine Light Ion Engine Propulsion Wheel Leg Improved Titanium Leg Wheel Wheel Utility Medium Storage Unit Device ECM Suite Storage Medium Storage Unit Weapon Light Assault Rifle Energy Gun EM Pulse Gun Energy Cannon YOLO Cannon Ballistic Gun Light Assault Rifle Build | -11 -10 -10 -10 -9 ------- Run | Scr Mat Min Exi Min Slots Evolved . | . . . . . Power . | . . . . . Propulsion . | . . . . . Utility . | . . . . . Weapon . | . . . . . Parts Attached 12 | 5 1 . 3 3 Power 1 | 1 . . . . Engine 1 | 1 . . . . Core . | . . . . . Reactor . | . . . . . Propulsion 3 | 2 . . . 1 Treads . | . . . . . Leg 1 | . . . . 1 Wheel 2 | 2 . . . . Hover . | . . . . . Flight . | . . . . . Utility 3 | . 1 . 2 . Device 1 | . 1 . . . Storage 2 | . . . 2 . Processor . | . . . . . Hackware . | . . . . . Protection . | . . . . . Artifact . | . . . . . Weapon 5 | 2 . . 1 2 Energy Gun 2 | 1 . . . 1 Energy Cannon 2 | . . . 1 1 Ballistic Gun 1 | 1 . . . . Ballistic Cannon . | . . . . . Launcher . | . . . . . Special Weapon . | . . . . . Impact Weapon . | . . . . . Slashing Weapon . | . . . . . Piercing Weapon . | . . . . . Special Melee Weapon . | . . . . . Unidentified Prototypes 1 | . . . 1 . Parts Lost 9 | . . 5 . 4 Power 1 | . . 1 . . Propulsion 3 | . . 1 . 2 Utility 1 | . . 1 . . Weapon 4 | . . 2 . 2 Highest Loss Streak 5 | . . 5 . 3 Average Slot Usage (%) 53 | . 82 70 41 61 Engine 2 | . 14 12 . . Leg 2 | . . . . 12 Wheel 15 | . 28 22 14 8 Device 2 | . 11 12 . . Storage 20 | . . . 24 28 Energy Gun 3 | . 14 12 . 1 Energy Cannon 3 | . . . 2 10 Ballistic Gun 2 | . 14 12 . . Naked Turns . | . . . . . Heaviest Build 29 | 6 7 7 29 29 Greatest Support 20 | 20 20 20 10 20 Greatest Overweight (x) 3 | . . . 2 3 Average Overweight (x) . | . . . 1 . Largest Inventory Capacity 8 | 4 4 4 8 8 Average Capacity 6 | 4 4 4 7 8 Most Carried 7 | 3 3 3 7 7 Average Carried 4 | . 3 3 4 6 Final Capacity 8 | 4 4 4 8 8 Final Carried 7 | 3 3 3 5 7 Class Distribution -------------------- 100% | Mutant Dominant Class ---------------- Mutant | -10/Materials Mutant | -10/Mines Mutant | -10/Exiles Mutant | -9/Mines Resources | -11 -10 -10 -10 -9 ----------- Run | Scr Mat Min Exi Min Matter Collected 383 | 354 19 . 10 . Remotely . | . . . . . Salvage Created 180 | 74 106 . . . Parts 9 | 2 7 . . . Haulers Intercepted . | . . . . . Recyclers Shooed . | . . . . . Parts Field Recycled . | . . . . . Retrieved Matter . | . . . . . Parts Self-Destructed . | . . . . . Prevented . | . . . . . Kills | -11 -10 -10 -10 -9 ------- Run | Scr Mat Min Exi Min Combat Hostiles Destroyed 4 | 1 3 . . . Guns 3 | 1 2 . . . AOE 1 | . 1 . . . Classes Destroyed 4 | 2 2 . . . Worker 1 | 1 . . . . Watcher 1 | . 1 . . . Swarmer 1 | . 1 . . . Grunt 3 | 1 2 . . . Best Kill Streak 2 | 1 2 . . . Combat Bots Only 2 | 1 2 . . . Max Kills in Single Turn 2 | 1 2 . . . Gunslinging . | . . . . . Exploded 1 | . 1 . . . Melee . | . . . . . Uniques/NPCs Destroyed . | . . . . . Combat | -11 -10 -10 -10 -9 -------- Run | Scr Mat Min Exi Min Damage Taken 902 | 22 142 197 . 541 Core 263 | . 39 47 . 177 Absorbed by Shields . | . . . . . Core Remaining (%) 100 | 100 . . . . Volleys Fired 17 | 4 10 1 . 2 Largest 2 | 2 2 2 . 1 Hottest 100 | 60 60 60 . 100 Shots Fired 30 | 6 20 2 . 2 Gun 28 | 6 20 2 . . Cannon 2 | . . . . 2 Launcher . | . . . . . Special . | . . . . . Kinetic 15 | 4 10 1 . . Thermal 1 | . . . . 1 Explosive . | . . . . . Electromagnetic 14 | 2 10 1 . 1 Robot Hit Streak 9 | 4 9 1 . . Robot Miss Streak 3 | 1 2 1 . 3 Penetration Max . | . . . . . Secondary Targets . | . . . . . Shots Hit Robots 19 | 4 14 1 . . Core Hits 11 | 3 7 1 . . Critical Hits . | . . . . . Critical Kills . | . . . . . Critical Parts Destroyed . | . . . . . Melee Attacks . | . . . . . Impact . | . . . . . Slashing . | . . . . . Piercing . | . . . . . Sneak Attacks . | . . . . . Combat Hostiles . | . . . . . Follow-up Attacks . | . . . . . Damage Inflicted 385 | 48 325 12 . . Guns 206 | 48 146 12 . . Cannons . | . . . . . Explosions 179 | . 179 . . . Melee . | . . . . . Ramming . | . . . . . Kinetic 76 | 20 56 . . . Thermal . | . . . . . Explosive 179 | . 179 . . . Electromagnetic 130 | 28 90 12 . . Impact . | . . . . . Slashing . | . . . . . Piercing . | . . . . . Highest Corruption . | . . . . . Average Corruption . | . . . . . Corruption Purged . | . . . . . Overload Shots . | . . . . . Overflow Damage . | . . . . . Projectiles . | . . . . . Explosions . | . . . . . Melee . | . . . . . Knockbacks . | . . . . . Impact . | . . . . . Kinetic . | . . . . . Secondary . | . . . . . Self-Inflicted Damage . | . . . . . Shots . | . . . . . Rammed . | . . . . . Targets Rammed . | . . . . . Kicked . | . . . . . Crushed . | . . . . . Highest Temperature 121 | 32 121 15 . 18 Average Temperature 54 | 20 65 12 . 13 Received Heat Transfer 102 | 12 81 . . 9 Siege Activations . | . . . . . Robots Corrupted . | . . . . . Combat Hostiles . | . . . . . Parts Fried . | . . . . . Impact Corruptions . | . . . . . Robots Melted . | . . . . . Combat Hostiles . | . . . . . Parts Melted . | . . . . . Heat Transferred . | . . . . . Parts Sabotaged . | . . . . . Parts Stolen . | . . . . . Parts Stripped . | . . . . . Power Chain Reactions . | . . . . . Missiles Intercepted . | . . . . . Alert | -11 -10 -10 -10 -9 ------- Run | Scr Mat Min Exi Min Peak Influence 228 | 25 228 103 . . Initial 88 | . 16 88 . . Average 44 | 5 94 85 . . Maximum Alert Level 1 | . 1 . . . Low Security (%) 96 | 100 90 100 . 100 Level 1 3 | . 9 . . . Level 2 . | . . . . . Level 3 . | . . . . . Level 4 . | . . . . . Level 5 . | . . . . . High Security . | . . . . . Max Security . | . . . . . Squads Dispatched 3 | . 2 . . 1 Investigation 1 | . . . . 1 Extermination . | . . . . . Reinforcement 2 | . 2 . . . Assault . | . . . . . Garrison . | . . . . . Intercept . | . . . . . Construction Impeded . | . . . . . Haulers Reinforced . | . . . . . Stealth | -11 -10 -10 -10 -9 --------- Run | Scr Mat Min Exi Min Distress Signals 3 | . 3 . . . Communications Jammed . | . . . . . Distress Signals . | . . . . . Times Spotted 26 | 1 9 10 . 6 Peak Tracking Total 10 | 1 6 10 . 5 Tactical Retreats 1 | . 1 . . . Traps | -11 -10 -10 -10 -9 ------- Run | Scr Mat Min Exi Min Traps Triggered . | . . . . . Indirectly . | . . . . . Trap Hack Attempts . | . . . . . Triggered . | . . . . . Disarmed . | . . . . . Reprogrammed . | . . . . . Reused . | . . . . . Traps Extracted . | . . . . . Installed . | . . . . . Triggered . | . . . . . Machines | -11 -10 -10 -10 -9 ---------- Run | Scr Mat Min Exi Min Machines Disabled 1 | . 1 . . . Max in Single Turn 1 | . 1 . . . Machines Sabotaged . | . . . . . Garrisons Compromised . | . . . . . Overloaded Fab Kills . | . . . . . Fab Network Shutdowns . | . . . . . Hacking | -11 -10 -10 -10 -9 --------- Run | Scr Mat Min Exi Min Machines Accessed 6 | . 1 . 4 1 Terminals . | . . . . . Fabricators . | . . . . . Repair Stations . | . . . . . Recycling Units 1 | . 1 . . . Scanalyzers . | . . . . . Garrison Access . | . . . . . Total Hacks 23 | . 2 . 20 1 Successful 23 | . 2 . 20 1 Failed . | . . . . . Catastrophic . | . . . . . Database Lockouts . | . . . . . Manual 2 | . . . 2 . Terminals . | . . . . . Fabricators . | . . . . . Repair Stations . | . . . . . Recycling Units 2 | . 2 . . . Scanalyzers . | . . . . . Garrison Access . | . . . . . Terminal Hacks 21 | . . . 20 1 Record 19 | . . . 19 . Open Door 1 | . . . . 1 EX-Prototype ID Bank 1 | . . . 1 . Fabricator Hacks . | . . . . . Repair Station Hacks . | . . . . . Recycling Unit Hacks 2 | . 2 . . . Report Inventory 1 | . 1 . . . Retrieve Matter 1 | . 1 . . . Scanalyzer . | . . . . . Garrison Access Hacks . | . . . . . Unauthorized Hacks . | . . . . . Terminals . | . . . . . Fabricators . | . . . . . Repair Stations . | . . . . . Recycling Units . | . . . . . Scanalyzers . | . . . . . Garrison Access . | . . . . . Data Cores Recovered . | . . . . . Used . | . . . . . Hacking Detections . | . . . . . Full Trace Events . | . . . . . Feedback Events . | . . . . . Feedback Blocked . | . . . . . Robot Schematics Acquired . | . . . . . Robots Built . | . . . . . Matter . | . . . . . Time . | . . . . . Total Robot Build Rating . | . . . . . Part Schematics Acquired . | . . . . . Parts Built . | . . . . . Matter . | . . . . . Time . | . . . . . Total Part Build Rating . | . . . . . Parts Repaired . | . . . . . Time . | . . . . . Parts Recycled . | . . . . . Recycled Matter . | . . . . . Retrieved Matter . | . . . . . Retrieved Components . | . . . . . Parts Scanalyzed . | . . . . . Part Schematics Acquired . | . . . . . Parts Damaged . | . . . . . Bothacking | -11 -10 -10 -10 -9 ------------ Run | Scr Mat Min Exi Min Used RIF Installer . | . . . . . Robots Hacked . | . . . . . Non-combat . | . . . . . Combat . | . . . . . Robot Hacks Applied . | . . . . . Relay Couplers Released . | . . . . . Robots Rewired . | . . . . . Allies Hacked . | . . . . . Hacks Repelled . | . . . . . Allies | -11 -10 -10 -10 -9 -------- Run | Scr Mat Min Exi Min Total Allies . | . . . . . Largest Group . | . . . . . Highest-Rated Group . | . . . . . Highest-Rated Ally . | . . . . . Total Orders . | . . . . . Ally Attacks . | . . . . . Total Damage . | . . . . . Kills . | . . . . . Allies Corrupted . | . . . . . Allies Melted . | . . . . . Intel | -11 -10 -10 -10 -9 ------- Run | Scr Mat Min Exi Min Robot Analysis Total . | . . . . . Derelict Logs Recovered 1 | . . 1 . . Drone Launches . | . . . . . Drone Recoveries . | . . . . . Exploration | -11 -10 -10 -10 -9 ------------- Run | Scr Mat Min Exi Min Turns Passed 1230 | 69 189 70 687 215 Spaces Moved 1147 | 68 115 83 751 130 Core 18 | 15 . . . 3 Treads . | . . . . . Legs 114 | . . . . 114 Wheels 1015 | 53 115 83 751 13 Hover . | . . . . . Flight . | . . . . . Fastest Speed 50 | 50 80 80 80 100 Average Speed 93 | 73 80 80 90 141 Slowest Speed 200 | 80 80 80 100 200 Overloaded Moves . | . . . . . Propulsion Burnouts . | . . . . . Robots Hopped . | . . . . . Cave-ins Triggered . | . . . . . Exploration Rate (%) 34 | 5 28 26 93 18 Regions Visited 4 Branch Regions 3 Pre-discovered Areas 1 | . . . . 1 Known Exits Taken . | . . . . . Unknown Exits Taken 4 | 1 1 1 1 . Scrap Searched 1 | . . 1 . . Spaces Dug . | . . . . . Terrain Destroyed 34 | . 8 . . 26 Melee . | . . . . . Projectile 1 | . . . . 1 AOE 33 | . 8 . . 25 Terrain Rammed . | . . . . . Walls Destroyed . | . . . . . Machines Disabled . | . . . . . Actions | -11 -10 -10 -10 -9 --------- Run | Scr Mat Min Exi Min Total 1272 | 79 193 84 757 159 Wait 90 | . 68 1 1 20 Move 1143 | 67 114 82 750 130 Hop . | . . . . . Pick Up 9 | 3 . . 3 3 Fast Attach 9 | 5 1 . 2 1 Attach 3 | . . . 1 2 Detach . | . . . . . Swap . | . . . . . Drop 1 | . . . . 1 Fire 17 | 4 10 1 . 2 Melee . | . . . . . Ram . | . . . . . Kick . | . . . . . Crush . | . . . . . Escape Stasis . | . . . . . Rewire . | . . . . . Trap . | . . . . . Miscellaneous . | . . . . . Route ------- -11/Scrapyard -10/Materials -10/Mines -10/Exiles -9/Mines History --------- Turn | Location | Event 2 | -11/Scrapyard | Met Revision 17 54 | -11/Scrapyard | Discovered new exit (range 8) 70 | -11/Scrapyard | Entered Materials 255 | -10/Materials | Discovered new exit (range 6) 259 | -10/Materials | Entered Mines 271 | -10/Mines | Assembled infested the area 278 | -10/Mines | Found a hidden stash of uninstalled traps 314 | -10/Mines | Build established: Mutant 326 | -10/Mines | Deemed a non-threat by the Exiles lab entrance 326 | -10/Mines | Discovered new exit (range 5) 329 | -10/Mines | Entered Exiles 348 | -10/Exiles | Met 8R-AWN 350 | -10/Exiles | Lost 5 parts (1p1n1u2w) 363 | -10/Exiles | Met EX-HEX 425 | -10/Exiles | Met EX-DEC 501 | -10/Exiles | Discovered new exit (range 10) 569 | -10/Exiles | Visited The Gauntlet 747 | -10/Exiles | Met EX-BIN 770 | -10/Exiles | Aligned with FarCom system 771 | -10/Exiles | Given EX-Vault access code 874 | -10/Exiles | Opened EX-Vault 877 | -10/Exiles | Found Prototype Device 882 | -10/Exiles | Found Prototype Energy Cannon 883 | -10/Exiles | Identified YOLO Cannon 912 | -10/Exiles | Identified Chronowheel 939 | -10/Exiles | Warned to stay clear of 0b10 Research branches 1016 | -10/Exiles | Stole two prototypes: Chronowheel, YOLO Cannon 1016 | -10/Exiles | Entered Mines 1024 | -9/Mines | Met a Derelict shopkeep closing up shop 1162 | -9/Mines | Core integrity fell below 50% 1163 | -9/Mines | Learned location of Storage (-8) 1198 | -9/Mines | Core integrity fell below 20% 1219 | -9/Mines | Lost 3 parts (1n2w) 1231 | -9/Mines | Destroyed by G-47 Trooper with Particle Gun Last Messages --------------- 01028_ 7Q-TFF(g): "Take whatever you can and run for it!" 01029_ Acquired Imp. Titanium Leg. 01033_ Acquired Dynamic Insulation System. 01035_ Acquired Imp. EM Pulse Cannon. 01094_ K-01 Serf collects debris. 01143_ Dropped YOLO Cannon. 01145_ Wheel destroyed. 01148_ Acquired YOLO Cannon. 01160_ Sml. Laser destroyed. 01163_ A derelict emerges from the shadows: "Are any of them following you? I'm here trying to lose some heat after our second raid on Storage failed. Whatever you do stay away from that place, they've tightened security following our previous successful raids." World map updated: -8/Storage. 01164_ S-10 Pest destroyed. 01165_ I0-I7O(g): "We scattered so the Unaware couldn't effectively use their advantage in numbers, and I suggest you do the same." 01165_ I0-I7O(g) slips back into the shadows. 01188_ Imp. EM Pulse Cannon destroyed. 01226_ Imp. Titanium Leg destroyed. Map ----- +----------------------------------------------------+ | ???????????????????????????????????????????????? | | ???????????????????????????????????????????????? | | ???????????????????????????????????????????????? | | ???????????????????????????????????????????????? | | ???????????????????????????????????????????????? | | ???????????????????????????????????????????????? | | ???????????????????????????????????????????????? | | ???????????????????????????????????????????????? | | ???????????????????????????????????????????????? | | ???????????????????????????????????????????????? | | ???????????????????????????????????????????????? | | ???????????????????????????????????????????????? | | ????????????????????????????########??########?? | | ????????????????????????????# #??#""""""#?? | | ????????????????????????????#""" #??#!!] #?? | | ????????????????????????????#""" #??## ##?? | | ????????????????????????????#""" #???#[ ]#??? | | ????????????????????????????# #??### ###?? | | ????????????????????????????#""" #??# X #?? | | ????????????????????????????#""" #??# ##? | | ????????????????????????????#""" #??# #? | | ????????????????????????????# #??# #? | | ????????????????????????????#### ###### #? | | ????????????????g??????????????# #? | | ?????????? % g ########### ## ### #? | | ?????????? % %g % @ss ## #?# #? | | ?????????????????## ############### #?# #? | | ??????????????????????????????????# #?# #? | | ?????????????????????????????????## #?# #? | | ????????????????????????????###### ### #? | | ???????????????????????????## ## ## #? | | ???????????????????????????# ##########? | | ???????????????????????????# ##?????????? | | ???????????????????????????# % ##??????????? | | ???????????????????????????## "####???????????? | | ????????????g?????????????##"" " #?????????????? | | ??????????????????????????# " " #?????????????? | | ??????????????????????????# " #?????????????? | | ??????????????????????????# " " #?????????????? | | ??????????????????????????## " " #?????????????? | | ???????????????????????????##" "###????????????? | | ????????????????????????????## #????????????? | | ???????????????????????????## ##???????????? | | ??????????????????????????## #???????????? | | ?????????????????????????## #???????????? | | ?????????????????????????# ##???????????? | | ?????????????????????????# ##????????????? | | ?????????????????????????# ##?????????????? | | ?????????????????????????## ##??????????????? | | ??????????????????????????######???????????????? | +----------------------------------------------------+ Best States ------------- Heat Dissipation 25 Energy Generation 10 Energy Capacity 125 Matter Stores 430 Matter Capacity 450 Sight Range 16 Terrain Scan Density 10 ECM Strength 1 Evasion (%) 50 Item Schematics ----------------- None Robot Schematics ------------------ None Fabricated ------------ Nothing Alien Tech Used ----------------- None Achievements -------------- I Survived The Infestation Librarian Challenges ------------ None Game ------ Seed CoilCompositeClaw Manual? 0 Play Time 00:27:43 Cumulative 4.5 hours Start 2021.03.02 @ 18:56:37 End 2021.03.02 @ 19:25:49 Sessions 1 Manual Loads 0 Difficulty Rogue Special Mode None Game No. 6 Rogue 6 Adventurer 0 Explorer 0 Win Type - Total 0 Types 0/0/0/0/0/0/0/0/0 Lore% 11 Gallery% 7 Achievement% 10 Wizard Run 0 Options --------- ASCII 0 Keyboard 1 Movement Numpad Keybinds 0 Fullscreen 1 Font 18/Terminus Map View 76x50 Tactical HUD 1 Map Filters NONE Filters NONE Steam 1 RUN: df66008e-a417-42fd-8b8f-746532a24f5d